Cogmind - Beta 11 @@@ ROGUE MODE // 2022.04.09 @ 11:21:30 Player: Catfish Result: Self-destructed Performance ------------- Evolutions (2) 1000 Regions Visited (5) 1000 Robots Destroyed (19) 95 Value Destroyed (447) 447 Prototype IDs (1) 20 Alien Tech Used (0) 0 Bonus (185) 185 TOTAL SCORE: 2747 Bonus ------- Aligned with FarCom 300 Friendly Fire -115 Cogmind --------- Core Integrity 550/550 Matter 167/300 Energy 125/125 System Corruption 0% Temperature Cool (9) Movement Flying (200) Ox2 Location -8/Materials Parts ------- > --- POWER (2) -------- Light Ion Engine > --- PROPULSION (4) --- Flight Unit > --- UTILITY (3) ------ Visual Processing Unit Hardened Light Armor Plating > --- WEAPON (2) ------- Heavy Flail > --- INVENTORY (5) ---- Light Ion Engine Improved Grenade Launcher Peak State ------------ > --- POWER ------------ Light Ion Engine Light Ion Engine > --- PROPULSION ------- Flight Unit Flight Unit Flight Unit Flight Unit > --- UTILITY ---------- Visual Processing Unit Hardened Light Armor Plating Supersonic Drone Bay > --- WEAPON ----------- Light Assault Rifle Light Assault Rifle > --- INVENTORY -------- Light Ion Engine [Rating: 20] Favorites ----------- Power Light Ion Engine Engine Light Ion Engine Propulsion Aluminum Leg Leg Aluminum Leg Wheel Compact Wheel Flight Unit Flight Unit Utility Medium Storage Unit Device Sensor Array Storage Medium Storage Unit Processor Visual Processing Unit Protection Hardened Light Armor Plating Weapon Small Laser Energy Gun Small Laser Ballistic Gun Light Assault Rifle Launcher Grenade Launcher Impact Weapon Heavy Flail Special Melee Weapon Improved Datajack Build | -11 -10 -10 -10 -9 -8 ------- Run | Scr Mat Min Exi Min Mat Slots Evolved 4 | . . . . . 4 Power 1 | . . . . . 1 Propulsion 2 | . . . . . 2 Utility 1 | . . . . . 1 Weapon . | . . . . . . Parts Attached 40 | 6 7 5 1 14 7 Power 6 | 1 2 1 . 1 1 Engine 6 | 1 2 1 . 1 1 Core . | . . . . . . Reactor . | . . . . . . Propulsion 14 | 2 2 2 . 6 2 Treads . | . . . . . . Leg 5 | . 2 2 . 1 . Wheel 2 | 2 . . . . . Hover . | . . . . . . Flight 7 | . . . . 5 2 Utility 9 | 1 3 . 1 2 2 Device 2 | . 1 . . 1 . Storage 4 | 1 1 . 1 . 1 Processor 1 | . . . . 1 . Hackware . | . . . . . . Protection 2 | . 1 . . . 1 Artifact . | . . . . . . Weapon 11 | 2 . 2 . 5 2 Energy Gun 6 | 2 . 2 . 2 . Energy Cannon . | . . . . . . Ballistic Gun 2 | . . . . 2 . Ballistic Cannon . | . . . . . . Launcher 1 | . . . . 1 . Special Weapon . | . . . . . . Impact Weapon 1 | . . . . . 1 Slashing Weapon . | . . . . . . Piercing Weapon . | . . . . . . Special Melee Weapon 1 | . . . . . 1 Unidentified Prototypes 1 | . . . . 1 . Parts Lost 9 | . 1 2 . 1 5 Power 2 | . . 1 . . 1 Propulsion 5 | . 1 . . 1 3 Utility . | . . . . . . Weapon 2 | . . 1 . . 1 Highest Loss Streak 4 | . 1 2 . 1 4 To Critical Strikes . | . . . . . . Average Slot Usage (%) 98 | . 99 99 100 99 79 Engine 14 | . 14 13 14 14 18 Leg 23 | . 13 28 28 17 . Wheel 2 | . 14 . . . . Flight 2 | . . . . 10 31 Device 1 | . 8 . . 4 1 Storage 13 | . 14 14 14 9 4 Processor 1 | . . . . 8 9 Protection 11 | . 5 14 14 5 9 Energy Gun 26 | . 28 28 28 24 . Naked Turns . | . . . . . . Heaviest Build 23 | 11 23 23 22 22 16 Greatest Support 26 | 26 26 20 20 20 16 Greatest Overweight (x) 4 | 1 1 1 1 4 1 Average Overweight (x) . | . . . 1 . . Largest Inventory Capacity 10 | 8 10 10 10 10 8 Average Capacity 9 | 6 9 10 10 8 6 Most Carried 10 | 5 10 10 10 10 5 Average Carried 9 | 2 8 9 10 8 3 Final Capacity 10 | 8 10 10 10 5 5 Final Carried 10 | 4 10 10 10 5 2 Class Distribution -------------------- 92% | Mutant 4% | Scavenger-Mutant Dominant Class ---------------- Mutant | -10/Materials Mutant | -10/Mines Mutant | -10/Exiles Mutant | -9/Mines Scavenger-Sprinter | -8/Materials Resources | -11 -10 -10 -10 -9 -8 ----------- Run | Scr Mat Min Exi Min Mat Matter Collected 581 | 243 82 115 . 141 . Remotely . | . . . . . . Salvage Created 518 | . 291 175 . 52 . Parts 37 | . 13 9 . 15 . Haulers Intercepted 1 | . 1 . . . . Recyclers Shooed . | . . . . . . Parts Field Recycled . | . . . . . . Retrieved Matter . | . . . . . . Parts Self-Destructed . | . . . . . . Prevented . | . . . . . . Kills | -11 -10 -10 -10 -9 -8 ------- Run | Scr Mat Min Exi Min Mat Combat Hostiles Destroyed 16 | . 5 4 . 7 . Guns 12 | . 5 4 . 3 . AOE 4 | . . . . 4 . Classes Destroyed 6 | . 4 . . 2 . Tunneler 1 | . 1 . . . . Hauler 1 | . 1 . . . . Drone 1 | . . . . 1 . Watcher 1 | . 1 . . . . Swarmer 7 | . . . . 7 . Grunt 9 | . 5 4 . . . Best Kill Streak 4 | . 3 2 . 4 . Combat Bots Only 4 | . 2 2 . 4 . Max Kills in Single Turn 1 | . 1 1 . 1 . Gunslinging . | . . . . . . Exploded 1 | . . . . 1 . Melee . | . . . . . . Uniques/NPCs Destroyed . | . . . . . . Combat | -11 -10 -10 -10 -9 -8 -------- Run | Scr Mat Min Exi Min Mat Damage Taken 1098 | . 225 391 . 261 221 Core 167 | . 52 50 . 65 . Absorbed by Shields . | . . . . . . Core Remaining (%) 66 | 100 . . . 33 . Volleys Fired 69 | . 34 19 . 16 . Largest 2 | . 2 2 . 2 . Hottest 105 | . 90 90 . 105 . Shots Fired 132 | . 68 37 . 27 . Gun 127 | . 68 37 . 22 . Cannon . | . . . . . . Launcher 5 | . . . . 5 . Special . | . . . . . . Kinetic . | . . . . . . Thermal 127 | . 68 37 . 22 . Explosive 5 | . . . . 5 . Electromagnetic . | . . . . . . Robot Hit Streak 9 | . 6 9 . 4 . Robot Miss Streak 8 | . 6 4 . 8 . Penetration Max . | . . . . . . Secondary Targets 1 | . 1 . . . . Max Gunslinging Chain 1 | . 1 . . . . Shots Hit Robots 80 | . 37 28 . 10 5 Core Hits 34 | . 15 10 . 9 . Critical Kills . | . . . . . . Critical Parts Destroyed . | . . . . . . Critical Strikes 3 | . 2 . . 1 . Burn 3 | . 2 . . 1 . Melee Attacks 7 | . . . . . 7 Impact 3 | . . . . . 3 Slashing . | . . . . . . Piercing . | . . . . . . Sneak Attacks . | . . . . . . Combat Hostiles . | . . . . . . Follow-up Attacks . | . . . . . . Damage Inflicted 1095 | . 457 320 . 262 56 Guns 905 | . 457 320 . 128 . Cannons . | . . . . . . Explosions 134 | . . . . 134 . Melee 56 | . . . . . 56 Ramming . | . . . . . . Kinetic . | . . . . . . Thermal 905 | . 457 320 . 128 . Explosive 134 | . . . . 134 . Electromagnetic . | . . . . . . Impact 56 | . . . . . 56 Slashing . | . . . . . . Piercing . | . . . . . . Highest Corruption . | . . . . . . Average Corruption . | . . . . . . Corruption Purged . | . . . . . . Corruption Blocked . | . . . . . . Overload Shots . | . . . . . . Overflow Damage 19 | . . . . 19 . Projectiles . | . . . . . . Explosions 19 | . . . . 19 . Melee . | . . . . . . Knockbacks . | . . . . . . Impact . | . . . . . . Kinetic . | . . . . . . Secondary . | . . . . . . Self-Inflicted Damage 82 | . . . . 82 . Shots 3 | . . . . 3 . Rammed . | . . . . . . Targets Rammed . | . . . . . . Kicked . | . . . . . . Crushed . | . . . . . . Highest Temperature 554 | . 376 554 . 485 16 Average Temperature 168 | . 118 244 . 234 7 Received Heat Transfer 426 | . 126 246 . 27 27 Effects 17 | . 2 12 . 3 . Shutdowns 4 | . 1 2 . 1 . Energy Bleed 1 | . . . . 1 . Interference 3 | . 1 2 . . . Matter Decay 2 | . . 2 . . . Short Circuit 1 | . . 1 . . . Damage (minor) 3 | . . 2 . 1 . Damage (major) 2 | . . 2 . . . Damage (core) 1 | . . 1 . . . Siege Activations . | . . . . . . Robots Corrupted . | . . . . . . Combat Hostiles . | . . . . . . Parts Fried . | . . . . . . Impact Corruptions . | . . . . . . Robots Melted . | . . . . . . Combat Hostiles . | . . . . . . Parts Melted 5 | . 1 2 . 2 . Heat Transferred 2554 | . 1375 820 . 359 . Parts Sabotaged . | . . . . . . Parts Stolen . | . . . . . . Parts Stripped . | . . . . . . Power Chain Reactions . | . . . . . . Missiles Intercepted . | . . . . . . Alert | -11 -10 -10 -10 -9 -8 ------- Run | Scr Mat Min Exi Min Mat Peak Influence 297 | . 242 65 . 297 185 Initial 115 | . . 16 . . 115 Average 60 | . 157 15 . 58 144 Maximum Alert Level 1 | . 1 . . 1 . Low Security (%) 87 | 100 48 100 . 89 100 Level 1 12 | . 51 . . 10 . Level 2 . | . . . . . . Level 3 . | . . . . . . Level 4 . | . . . . . . Level 5 . | . . . . . . High Security . | . . . . . . Max Security . | . . . . . . Squads Dispatched 5 | . 4 . . . 1 Investigation 3 | . 2 . . . 1 Extermination . | . . . . . . Reinforcement 2 | . 2 . . . . Assault . | . . . . . . Garrison . | . . . . . . Intercept . | . . . . . . Searches Triggered . | . . . . . . Construction Impeded . | . . . . . . Haulers Reinforced . | . . . . . . Active Scanning Responses . | . . . . . . Cargo Convoy Interrupts . | . . . . . . Stealth | -11 -10 -10 -10 -9 -8 --------- Run | Scr Mat Min Exi Min Mat Distress Signals 5 | . 4 . . . 1 Communications Jammed . | . . . . . . Distress Signals . | . . . . . . Times Spotted 36 | . 17 4 . 10 5 Peak Tracking Total 7 | . 7 2 . 3 4 Tactical Retreats 3 | . 1 . . 1 1 Traps | -11 -10 -10 -10 -9 -8 ------- Run | Scr Mat Min Exi Min Mat Traps Triggered 1 | . . . . . 1 Indirectly . | . . . . . . Trap Hack Attempts . | . . . . . . Triggered . | . . . . . . Disarmed . | . . . . . . Reprogrammed . | . . . . . . Reused . | . . . . . . Traps Extracted . | . . . . . . Installed . | . . . . . . Triggered . | . . . . . . Machines | -11 -10 -10 -10 -9 -8 ---------- Run | Scr Mat Min Exi Min Mat Machines Disabled 2 | . . . . 2 . Max in Single Turn 2 | . . . . 2 . Machines Sabotaged . | . . . . . . Garrisons Compromised . | . . . . . . Overloaded Fab Kills . | . . . . . . Hacking | -11 -10 -10 -10 -9 -8 --------- Run | Scr Mat Min Exi Min Mat Machines Accessed 9 | . 2 1 4 . 2 Terminals 3 | . 2 . . . 1 Fabricators . | . . . . . . Repair Stations 1 | . . . . . 1 Recycling Units . | . . . . . . Scanalyzers . | . . . . . . Garrison Access . | . . . . . . Total Hacks 65 | . 10 1 49 . 5 Successful 57 | . 6 1 49 . 1 Failed 8 | . 4 . . . 4 Catastrophic 1 | . . . . . 1 Database Lockouts . | . . . . . . Manual 18 | . 13 . 1 . 4 Terminals 13 | . 10 . . . 3 Fabricators . | . . . . . . Repair Stations 2 | . . . . . 2 Recycling Units . | . . . . . . Scanalyzers . | . . . . . . Garrison Access . | . . . . . . Terminal Hacks 54 | . 4 1 49 . . Record 49 | . . . 49 . . Part Schematic 1 | . 1 . . . . Open Door 1 | . . 1 . . . Branch Access Points 1 | . 1 . . . . Terminal Index 1 | . 1 . . . . Zone Layout 1 | . 1 . . . . Fabricator Hacks . | . . . . . . Repair Station Hacks . | . . . . . . Recycling Unit Hacks . | . . . . . . Scanalyzer . | . . . . . . Garrison Access Hacks . | . . . . . . Unauthorized Hacks 3 | . 2 . . . 1 Terminals 3 | . 2 . . . 1 Botnet 3 | . 2 . . . 1 Fabricators . | . . . . . . Repair Stations . | . . . . . . Recycling Units . | . . . . . . Scanalyzers . | . . . . . . Garrison Access . | . . . . . . Data Cores Recovered . | . . . . . . Used . | . . . . . . Hacking Detections 4 | . 2 . . . 2 Full Trace Events 1 | . 1 . . . . Feedback Events . | . . . . . . Feedback Blocked . | . . . . . . Robot Schematics Acquired . | . . . . . . Robots Built . | . . . . . . Authchips . | . . . . . . Time . | . . . . . . Total Robot Build Rating . | . . . . . . Part Schematics Acquired 1 | . 1 . . . . Parts Built . | . . . . . . Authchips . | . . . . . . Time . | . . . . . . Total Part Build Rating . | . . . . . . Parts Repaired . | . . . . . . Time . | . . . . . . Parts Recycled . | . . . . . . Recycled Matter . | . . . . . . Retrieved Matter . | . . . . . . Retrieved Components . | . . . . . . Parts Scanalyzed . | . . . . . . Part Schematics Acquired . | . . . . . . Parts Damaged . | . . . . . . Bothacking | -11 -10 -10 -10 -9 -8 ------------ Run | Scr Mat Min Exi Min Mat Used RIF Installer . | . . . . . . Robots Hacked 1 | . . . . . 1 Non-combat . | . . . . . . Combat 1 | . . . . . 1 Robot Hacks Applied 1 | . . . . . 1 parse_system 1 | . . . . . 1 Relay Couplers Released . | . . . . . . Fabnet Peak Effective % . | . . . . . . Robots Rewired . | . . . . . . Allies Hacked . | . . . . . . Hacks Repelled . | . . . . . . Allies | -11 -10 -10 -10 -9 -8 -------- Run | Scr Mat Min Exi Min Mat Total Allies . | . . . . . . Largest Group . | . . . . . . Highest-Rated Group . | . . . . . . Highest-Rated Ally . | . . . . . . Total Orders . | . . . . . . Ally Attacks . | . . . . . . Total Damage . | . . . . . . Kills . | . . . . . . Allies Corrupted . | . . . . . . Allies Melted . | . . . . . . Intel | -11 -10 -10 -10 -9 -8 ------- Run | Scr Mat Min Exi Min Mat Robot Analysis Total . | . . . . . . Derelict Logs Recovered 2 | . . 2 . . . Drone Launches 1 | . . . . 1 . Drone Recoveries . | . . . . . . Exploration | -11 -10 -10 -10 -9 -8 ------------- Run | Scr Mat Min Exi Min Mat Turns Passed 2618 | 43 413 1036 708 300 118 Spaces Moved 1526 | 35 200 492 372 254 173 Core 19 | 19 . . . . . Treads . | . . . . . . Legs 1046 | . 95 492 372 87 . Wheels 121 | 16 105 . . . . Hover . | . . . . . . Flight 340 | . . . . 167 173 Fastest Speed 31 | 50 90 120 190 37 31 Average Speed 145 | 79 131 189 190 85 40 Slowest Speed 360 | 100 190 190 190 360 117 Overloaded Moves . | . . . . . . Propulsion Burnouts . | . . . . . . Robots Hopped 1 | . . . . . 1 Cave-ins Triggered . | . . . . . . Exploration Rate (%) 40 | 3 41 88 64 27 18 Regions Visited 5 Branch Regions 3 Pre-discovered Areas 3 | . . 2 1 . . Known Exits Taken 1 | . 1 . . . . Unknown Exits Taken 4 | 1 . 1 1 1 . Scrap Searched 1 | . . 1 . . . Spaces Dug . | . . . . . . Terrain Destroyed 35 | . . . . 35 . Melee . | . . . . . . Projectile . | . . . . . . AOE 35 | . . . . 35 . Terrain Rammed . | . . . . . . Walls Destroyed . | . . . . . . Machines Disabled . | . . . . . . Actions | -11 -10 -10 -10 -9 -8 --------- Run | Scr Mat Min Exi Min Mat Total 1797 | 47 283 561 375 313 218 Wait 101 | 2 29 40 . 6 24 Move 1519 | 34 199 491 371 253 171 Hop 1 | . . . . . 1 Pick Up 26 | 5 8 3 1 7 2 Fast Attach 14 | 5 3 . . 4 2 Attach 12 | 1 1 2 . 3 5 Detach 3 | . 1 . . . 2 Swap 14 | . 3 3 1 7 . Drop 31 | . 5 3 2 17 4 Fire 69 | . 34 19 . 16 . Melee 7 | . . . . . 7 Ram . | . . . . . . Kick . | . . . . . . Crush . | . . . . . . Escape Stasis . | . . . . . . Rewire . | . . . . . . Trap . | . . . . . . Miscellaneous . | . . . . . . Route ------- -11/Scrapyard -10/Materials (discovered 3 exits: [*Mat] / *Min x2) -10/Mines (discovered 3 exits: [*Mat x2] / *Exi) -10/Exiles -9/Mines -8/Materials History --------- Turn | Location | Event 8 | -11/Scrapyard | Discovered new exit (range 16) 44 | -11/Scrapyard | Entered Materials 321 | -10/Materials | Build established: Mutant 351 | -10/Materials | Discovered new exit (range 16) 368 | -10/Materials | Identified exit to Mines 457 | -10/Materials | Entered Mines 460 | -10/Mines | Found the Drone Emporium 717 | -10/Mines | Learned location of Zion (-7) 741 | -10/Mines | Discovered new exit (range 15) 789 | -10/Mines | Learned location of Storage (-8) 1007 | -10/Mines | Discovered new exit (range 8) 1486 | -10/Mines | Deemed a non-threat by the Exiles lab entrance 1486 | -10/Mines | Discovered new exit (range 5) 1493 | -10/Mines | Entered Exiles 1518 | -10/Exiles | Discovered new exit (range 15) 1573 | -10/Exiles | Met 8R-AWN 1606 | -10/Exiles | Met EX-HEX 1708 | -10/Exiles | Met EX-DEC 1877 | -10/Exiles | Met EX-BIN 1903 | -10/Exiles | Aligned with FarCom system 1905 | -10/Exiles | Given EX-Vault access code 2004 | -10/Exiles | Opened EX-Vault 2016 | -10/Exiles | Found Prototype Device 2059 | -10/Exiles | Warned to stay clear of 0b10 Research branches 2201 | -10/Exiles | Left Exiles lab with Supersonic Drone Bay 2201 | -10/Exiles | Entered Mines 2367 | -9/Mines | Core integrity fell below 50% 2403 | -9/Mines | Identified Supersonic Drone Bay 2500 | -9/Mines | Discovered new exit (range 6) 2501 | -9/Mines | Entered Materials 2501 | -8/Materials | Evolved 4 slots: Power x1, Propulsion x2, Utility x1 2619 | -8/Materials | Self-destructed Last Messages --------------- W-25 Informer sends out distress signal. Slug penetrates Wall. Dropped Sml. Storage Unit. Acquired Imp. Datajack. Dropped Lgt. Assault Rifle. Slug penetrates Wall. R-06 Scavenger collects Lgt. Assault Rifle. Jacked H-55 Commando... >>parse_system Reading system data... Penetrated by Slug. Flight Unit destroyed. Jacked H-55 Commando... Command string: trojan( No effect. Jacked H-55 Commando... Penetrated by Slug. Imp. Datajack destroyed. Flight Unit destroyed. Lgt. Ion Engine destroyed. Map ----- +----------------------------------------------------+ | ???????????????????????????????????????????? | | ???????????????????????????????????????????? | | ???????????????????????????????????????????? | | ???????????????????????????????????????????? | | ???????????????????????????????????????????? | | ???????????????????????????????????????????? | | ???????????????????????????????????????????? | | ???????????????????????????????????????????? | | ??????????????? Y ?????????????????????????? | | ?????????????? ?????????????????????????? | | ?????????????? g ?????????????????????????? | | ??????????????# ?????????????????????????? | | ??????????????# #????????????????????????? | | ??????????????# ????????????????????????? | | ??????????????# #????????????????????????? | | ??????????????# #????????????????????????? | | ??????????????# #????????????????????????? | | ??????????????# #????????????????????????? | | ??????????????# #????????#######?????????? | | ??????????????# #?????#### #?????????? | | ??????????????# ####### ## ?????????? | | ??????????????# # # ?????????? | | ??????????????# # # ??????????? | | ???????######## # ]]] # ?????????## | | ???????# # # ]]] ## #?????????# | | ???????# w # hY@ ]] ## #?????????# | | ???????# """ # Y# ## #?????????# | | ???????# """ + # ] ## #?????????# | | ???????# """ # # ## #?????????# | | ???????# # # ## #??????????? | | ####??###+##### ########### #######+#### | | # ??# ! | | # !?# | | # !?# """ ^ ^"" | | # # """ // Y" ################## | | # """ # """ /! "" #????????????????? | | # """ + #????????????????? | | # """ # #????????????????? | | # # ########### #????????????????? | | #" ?# #??######## ##????????????????? | | #T ?# #??#!!!!!!# ####??????????????? | | #" ??# #??#!!!!!!# ! !##?????????????? | | # ??# #??# # !#?????????????? | | ###?### #### # !#?????????????? | | ????# !#?????????????? | | ????# !#?????????????? | | ?######+####+####+########!!##?????????????? | | ?# # # ?????####??????????????? | | ?# """"" # "" # ?????????????????????? | | ?# """"" # "T # """ #???????????????????? | +----------------------------------------------------+ Best States ------------- Heat Dissipation 31 Energy Generation 15 Energy Capacity 250 Matter Stores 300 Matter Capacity 300 Sight Range 18 Robot Scan Range 14 Terrain Scan Density 10 Armor Coverage 150 Evasion (%) 63 Item Schematics ----------------- Flight Unit | -10/Materials | Hacked Robot Schematics ------------------ None Fabricated ------------ Nothing Alien Tech Used ----------------- None Achievements -------------- Backstab Challenges ------------ None Game ------ Seed LargeAntigravAxe Manual? 0 Play Time 00:25:08 Cumulative 6.6 hours Start 2022.04.09 @ 10:59:11 End 2022.04.09 @ 11:21:30 Sessions 1 Manual Loads 0 Difficulty Rogue Special Mode None Game No. 22 Rogue 22 Adventurer 0 Explorer 0 Win Type - Total 0 Types 0/0/0/0/0/0/0/0/0 Lore% 16 Gallery% 14 Achievement% 15 Wizard Run 0 Options --------- ASCII 0 Keyboard 0 Movement Numpad Keybinds 0 Fullscreen 2 Font 18/X11Bold Map View 76x50 Tactical HUD 0 Map Filters NONE Filters NONE Steam 1 RUN: b3373180-ced0-4a52-9f06-4b80e35b40f0